[Event "Early-Titled-Tuesday-Blitz-April-16-2024"]
[Site "Chess.com"]
[Date "2024.04.16"]
[Round "6"]
[White "Martial2008"]
[Black "Msb2"]
[Result "0-1"]
[WhiteElo "2660"]
[BlackElo "3016"]
[TimeControl "180+1"]
[EndTime "9:07:30 PDT"]
[Termination "Msb2 won by checkmate"]

1. d4 {[%clk 0:03:00.9]} 1... d5 {[%clk 0:03:00.3]} 2. Nf3 {[%clk 0:03:00.2]}
2... e6 {[%clk 0:03:00.9]} 3. Bg5 {[%clk 0:02:59]} 3... Be7 {[%clk 0:03:00.9]}
4. Bxe7 {[%clk 0:02:57.5]} 4... Qxe7 {[%clk 0:03:01.8]} 5. Nbd2 {[%clk
0:02:56.3]} 5... Nf6 {[%clk 0:03:02.2]} 6. e3 {[%clk 0:02:55.4]} 6... O-O {[%clk
0:03:02.6]} 7. Bd3 {[%clk 0:02:55.6]} 7... c5 {[%clk 0:03:03.2]} 8. c3 {[%clk
0:02:54.9]} 8... Nc6 {[%clk 0:03:03.8]} 9. O-O {[%clk 0:02:51.6]} 9... e5 {[%clk
0:03:04]} 10. dxe5 {[%clk 0:02:51.3]} 10... Nxe5 {[%clk 0:03:04.9]} 11. Nxe5
{[%clk 0:02:51.7]} 11... Qxe5 {[%clk 0:03:05.8]} 12. Qf3 {[%clk 0:02:51.2]}
12... Rd8 {[%clk 0:03:02.7]} 13. Rfe1 {[%clk 0:02:50.3]} 13... Bg4 {[%clk
0:03:00.1]} 14. Qg3 {[%clk 0:02:49.6]} 14... Qxg3 {[%clk 0:03:00.5]} 15. hxg3
{[%clk 0:02:50.5]} 15... Be6 {[%clk 0:03:01.2]} 16. Rad1 {[%clk 0:02:49.8]}
16... h6 {[%clk 0:03:00.2]} 17. a3 {[%clk 0:02:49.8]} 17... Rd7 {[%clk 0:02:58]}
18. Bc2 {[%clk 0:02:48.2]} 18... Rad8 {[%clk 0:02:57.8]} 19. Nf3 {[%clk
0:02:48.4]} 19... Rd6 {[%clk 0:02:56.5]} 20. Rd2 {[%clk 0:02:48.5]} 20... Ne4
{[%clk 0:02:51.8]} 21. Rdd1 {[%clk 0:02:44.4]} 21... Bg4 {[%clk 0:02:46.1]} 22.
Kf1 {[%clk 0:02:42.2]} 22... Ng5 {[%clk 0:02:38.4]} 23. Ke2 {[%clk 0:02:33.1]}
23... Rf6 {[%clk 0:02:38.2]} 24. Rd2 {[%clk 0:02:14.3]} 24... Bxf3+ {[%clk
0:02:33.3]} 25. gxf3 {[%clk 0:02:14.6]} 25... Nxf3 {[%clk 0:02:34.2]} 26. Red1
{[%clk 0:02:15.4]} 26... Nxd2 {[%clk 0:02:34.2]} 27. Rxd2 {[%clk 0:02:16.3]}
27... Rfd6 {[%clk 0:02:34.4]} 28. f4 {[%clk 0:02:15.2]} 28... d4 {[%clk
0:02:33.5]} 29. cxd4 {[%clk 0:02:14.7]} 29... cxd4 {[%clk 0:02:34.4]} 30. e4
{[%clk 0:02:15.4]} 30... f6 {[%clk 0:02:28.3]} 31. Bd3 {[%clk 0:02:12.8]} 31...
Rc6 {[%clk 0:02:25.5]} 32. Kf3 {[%clk 0:02:11.5]} 32... Kf7 {[%clk 0:02:23.1]}
33. Kg4 {[%clk 0:02:06.8]} 33... g6 {[%clk 0:02:17.7]} 34. f5 {[%clk 0:01:58]}
34... h5+ {[%clk 0:02:11.9]} 35. Kh4 {[%clk 0:01:55.8]} 35... gxf5 {[%clk
0:02:07.2]} 36. exf5 {[%clk 0:01:55.8]} 36... Rg8 {[%clk 0:02:02]} 37. b3 {[%clk
0:01:47.5]} 37... Rg4+ {[%clk 0:01:55.8]} 38. Kxh5 {[%clk 0:01:33.2]} 38... Rxg3
{[%clk 0:01:53.9]} 39. Bc4+ {[%clk 0:01:33.9]} 39... Ke7 {[%clk 0:01:53.7]} 40.
Rxd4 {[%clk 0:01:27]} 40... Rg5+ {[%clk 0:01:53.5]} 41. Kh4 {[%clk 0:01:27.5]}
41... Rxf5 {[%clk 0:01:53.6]} 42. Kg4 {[%clk 0:01:27.8]} 42... Re5 {[%clk
0:01:49]} 43. Rd1 {[%clk 0:01:24.8]} 43... Rd6 {[%clk 0:01:44.9]} 44. Rh1 {[%clk
0:01:24.6]} 44... Rd4+ {[%clk 0:01:45]} 45. Kf3 {[%clk 0:01:24.6]} 45... b5
{[%clk 0:01:42.8]} 46. Bf1 {[%clk 0:01:10.6]} 46... Kd6 {[%clk 0:01:40.6]} 47.
Rh7 {[%clk 0:01:07.9]} 47... Rd1 {[%clk 0:01:24.2]} 48. Be2 {[%clk 0:01:05.4]}
48... Rb1 {[%clk 0:01:24.1]} 49. Rxa7 {[%clk 0:01:02.3]} 49... Rxb3+ {[%clk
0:01:24.3]} 50. Kf2 {[%clk 0:00:58.7]} 50... Rb2 {[%clk 0:01:24.7]} 51. Ra6+
{[%clk 0:00:58.4]} 51... Kc5 {[%clk 0:01:25]} 52. Rxf6 {[%clk 0:00:56.6]} 52...
Rexe2+ {[%clk 0:01:25.2]} 53. Kg3 {[%clk 0:00:54.9]} 53... Rg2+ {[%clk
0:01:25.1]} 54. Kh4 {[%clk 0:00:53.8]} 54... Rh2+ {[%clk 0:01:25.5]} 55. Kg3
{[%clk 0:00:53.1]} 55... Rbg2+ {[%clk 0:01:26.4]} 56. Kf3 {[%clk 0:00:51.2]}
56... Rf2+ {[%clk 0:01:27.3]} 57. Ke3 {[%clk 0:00:51.2]} 57... Rxf6 {[%clk
0:01:28.2]} 58. a4 {[%clk 0:00:51.3]} 58... Rh3+ {[%clk 0:01:28.5]} 59. Ke4
{[%clk 0:00:51.3]} 59... bxa4 {[%clk 0:01:28.7]} 60. Ke5 {[%clk 0:00:51.4]}
60... Ra6 {[%clk 0:01:29.4]} 61. Ke4 {[%clk 0:00:51.1]} 61... Rb3 {[%clk
0:01:30.3]} 62. Ke5 {[%clk 0:00:50.8]} 62... Rc6 {[%clk 0:01:30.3]} 63. Ke4
{[%clk 0:00:51.3]} 63... Kb6 {[%clk 0:01:30.8]} 64. Kd4 {[%clk 0:00:51.6]} 64...
Rbc3 {[%clk 0:01:31.7]} 65. Kd5 {[%clk 0:00:51.8]} 65... Kb7 {[%clk 0:01:32.6]}
66. Kd4 {[%clk 0:00:52.2]} 66... Kb8 {[%clk 0:01:33.5]} 67. Kd5 {[%clk
0:00:52.9]} 67... Kc8 {[%clk 0:01:34.4]} 68. Kd4 {[%clk 0:00:53.8]} 68... Kd8
{[%clk 0:01:35.3]} 69. Kd5 {[%clk 0:00:54.7]} 69... Ke8 {[%clk 0:01:36.2]} 70.
Ke5 {[%clk 0:00:55.6]} 70... Kf8 {[%clk 0:01:37.1]} 71. Ke4 {[%clk 0:00:56.5]}
71... Kg8 {[%clk 0:01:38]} 72. Kd4 {[%clk 0:00:57.4]} 72... Kh8 {[%clk
0:01:38.9]} 73. Kd5 {[%clk 0:00:58.3]} 73... Kh7 {[%clk 0:01:39.8]} 74. Ke5
{[%clk 0:00:59.2]} 74... Kh6 {[%clk 0:01:40.7]} 75. Ke4 {[%clk 0:01:00.1]} 75...
Kh5 {[%clk 0:01:41.6]} 76. Kf4 {[%clk 0:01:01]} 76... Kh4 {[%clk 0:01:42.5]} 77.
Kf5 {[%clk 0:01:01.7]} 77... Kh3 {[%clk 0:01:43.4]} 78. Ke5 {[%clk 0:01:02.6]}
78... Kh2 {[%clk 0:01:44.3]} 79. Kd5 {[%clk 0:01:03.5]} 79... a3 {[%clk
0:01:44.8]} 80. Kd4 {[%clk 0:01:04.4]} 80... a2 {[%clk 0:01:45.5]} 81. Ke4
{[%clk 0:01:05.3]} 81... a1=Q {[%clk 0:01:45]} 82. Ke5 {[%clk 0:01:06.2]} 82...
Qa5+ {[%clk 0:01:45.1]} 83. Kd4 {[%clk 0:01:06.3]} 83... Kg1 {[%clk 0:01:43.2]}
84. Ke4 {[%clk 0:01:07.2]} 84... Kf2 {[%clk 0:01:44.1]} 85. Kf4 {[%clk
0:01:08.1]} 85... Ke1 {[%clk 0:01:45]} 86. Ke4 {[%clk 0:01:09]} 86... Kd1 {[%clk
0:01:45.9]} 87. Kd4 {[%clk 0:01:04.6]} 87... Kc2 {[%clk 0:01:46.8]} 88. Ke4
{[%clk 0:01:05.5]} 88... Kb1 {[%clk 0:01:47.7]} 89. Kf4 {[%clk 0:01:06.4]} 89...
Ka2 {[%clk 0:01:48.6]} 90. Kg4 {[%clk 0:01:07.1]} 90... Kb3 {[%clk 0:01:49.3]}
91. Kf4 {[%clk 0:01:08]} 91... Ka4 {[%clk 0:01:49.2]} 92. Ke4 {[%clk 0:01:08.9]}
92... Kb5 {[%clk 0:01:49.8]} 93. Kf4 {[%clk 0:01:09.7]} 93... Ka6 {[%clk
0:01:50.7]} 94. Kg4 {[%clk 0:01:10.5]} 94... Kb7 {[%clk 0:01:51.5]} 95. Kf4
{[%clk 0:01:11.4]} 95... Ka8 {[%clk 0:01:52.2]} 96. Ke4 {[%clk 0:01:12.3]} 96...
R6c4# {[%clk 0:01:51.8]} 0-1

[Event "Early-Titled-Tuesday-Blitz-April-16-2024"]
[Site "Chess.com"]
[Date "2024.04.16"]
[Round "6"]
[White "kacperkarwowski"]
[Black "Chessbard1972"]
[Result "0-1"]
[WhiteElo "2503"]
[BlackElo "2362"]
[TimeControl "180+1"]
[EndTime "9:07:30 PDT"]
[Termination "Chessbard1972 won by resignation"]

1. e4 {[%clk 0:02:58.7]} 1... c5 {[%clk 0:02:59.4]} 2. Nf3 {[%clk 0:02:55.2]}
2... a6 {[%clk 0:02:58.6]} 3. c3 {[%clk 0:02:51.2]} 3... d5 {[%clk 0:02:58]} 4.
exd5 {[%clk 0:02:50.5]} 4... Qxd5 {[%clk 0:02:58.9]} 5. d4 {[%clk 0:02:48.2]}
5... Nf6 {[%clk 0:02:59.8]} 6. Be3 {[%clk 0:02:44.3]} 6... cxd4 {[%clk 0:02:59]}
7. cxd4 {[%clk 0:02:44.4]} 7... Bg4 {[%clk 0:02:58.4]} 8. Be2 {[%clk 0:02:43.5]}
8... e6 {[%clk 0:02:58.6]} 9. Nc3 {[%clk 0:02:41.4]} 9... Qd6 {[%clk 0:02:59.1]}
10. O-O {[%clk 0:02:37.6]} 10... Nc6 {[%clk 0:02:59.5]} 11. Qb3 {[%clk
0:02:23.5]} 11... Qb4 {[%clk 0:02:58.3]} 12. Qc2 {[%clk 0:02:03.9]} 12... Be7
{[%clk 0:02:55.2]} 13. a3 {[%clk 0:02:02.6]} 13... Qd6 {[%clk 0:02:55.3]} 14. h3
{[%clk 0:01:57.4]} 14... Bh5 {[%clk 0:02:54.5]} 15. Rac1 {[%clk 0:01:53.1]}
15... O-O {[%clk 0:02:53.4]} 16. Rfd1 {[%clk 0:01:52.1]} 16... Bg6 {[%clk
0:02:45.8]} 17. Qd2 {[%clk 0:01:34.1]} 17... Ne4 {[%clk 0:02:43.6]} 18. Nxe4
{[%clk 0:00:42.1]} 18... Bxe4 {[%clk 0:02:40.3]} 19. Bf4 {[%clk 0:00:42.8]}
19... Qd8 {[%clk 0:02:39]} 20. Qe3 {[%clk 0:00:43.3]} 20... Bd5 {[%clk
0:02:38.1]} 21. Ne5 {[%clk 0:00:43]} 21... Rc8 {[%clk 0:02:34]} 22. Bf3 {[%clk
0:00:38.2]} 22... Bf6 {[%clk 0:02:32.6]} 23. Nxc6 {[%clk 0:00:06.6]} 23... Rxc6
{[%clk 0:02:30.2]} 24. Be5 {[%clk 0:00:04.4]} 24... Bg5 {[%clk 0:02:24.2]} 25.
Bf4 {[%clk 0:00:04.1]} 25... Bxf4 {[%clk 0:02:22.7]} 26. Qxf4 {[%clk 0:00:05]}
26... Qd7 {[%clk 0:02:18.4]} 27. Rxc6 {[%clk 0:00:04.2]} 27... Bxc6 {[%clk
0:02:11.8]} 28. Bxc6 {[%clk 0:00:03.6]} 28... Qxc6 {[%clk 0:02:11.6]} 29. Rc1
{[%clk 0:00:04.3]} 29... Qd5 {[%clk 0:02:10.4]} 30. Rc5 {[%clk 0:00:02.4]} 30...
Qb3 {[%clk 0:02:09.2]} 31. Qd2 {[%clk 0:00:02.6]} 31... Rd8 {[%clk 0:02:07.1]}
32. Qc3 {[%clk 0:00:03]} 32... Qd1+ {[%clk 0:02:03.7]} 33. Kh2 {[%clk
0:00:03.5]} 33... Qa4 {[%clk 0:01:51.5]} 34. Rc8 {[%clk 0:00:03.7]} 34... Qd7
{[%clk 0:01:51.1]} 35. Rxd8+ {[%clk 0:00:03.9]} 35... Qxd8 {[%clk 0:01:51.2]}
36. Qb4 {[%clk 0:00:04.5]} 36... Qd7 {[%clk 0:01:50.2]} 37. f3 {[%clk
0:00:04.5]} 37... f6 {[%clk 0:01:47.5]} 38. Qc5 {[%clk 0:00:04.8]} 38... Kf7
{[%clk 0:01:46.6]} 39. Qb6 {[%clk 0:00:05.1]} 39... h5 {[%clk 0:01:45.3]} 40. a4
{[%clk 0:00:04.8]} 40... Qd5 {[%clk 0:01:42.2]} 41. b4 {[%clk 0:00:03.9]} 41...
h4 {[%clk 0:01:40.9]} 42. b5 {[%clk 0:00:04]} 42... axb5 {[%clk 0:01:40.2]} 43.
axb5 {[%clk 0:00:04.9]} 43... Kg6 {[%clk 0:01:35.1]} 44. Kg1 {[%clk 0:00:05.1]}
44... Kf5 {[%clk 0:01:33.7]} 45. Kh1 {[%clk 0:00:05.4]} 45... Kf4 {[%clk
0:01:32.8]} 46. Qc7+ {[%clk 0:00:05.9]} 46... Ke3 {[%clk 0:01:31.6]} 47. Qxg7
{[%clk 0:00:06.2]} 47... Qxd4 {[%clk 0:01:26.5]} 48. Qh6+ {[%clk 0:00:06.5]}
48... Ke2 {[%clk 0:01:24]} 49. Qxh4 {[%clk 0:00:06.7]} 49... Qxh4 {[%clk
0:01:22.5]} 0-1

[Event "Early-Titled-Tuesday-Blitz-April-16-2024"]
[Site "Chess.com"]
[Date "2024.04.16"]
[Round "6"]
[White "Orest_Vovk"]
[Black "IPAchess"]
[Result "0-1"]
[WhiteElo "2552"]
[BlackElo "2377"]
[TimeControl "180+1"]
[EndTime "9:07:32 PDT"]
[Termination "IPAchess won by resignation"]

1. g4 {[%clk 0:02:45]} 1... d5 {[%clk 0:02:47.6]} 2. h3 {[%clk 0:02:44.3]} 2...
e5 {[%clk 0:02:47.1]} 3. Bg2 {[%clk 0:02:44.7]} 3... Nc6 {[%clk 0:02:47.7]} 4.
c4 {[%clk 0:02:44.3]} 4... d4 {[%clk 0:02:47.6]} 5. Bxc6+ {[%clk 0:02:44.8]}
5... bxc6 {[%clk 0:02:47.6]} 6. d3 {[%clk 0:02:45.4]} 6... c5 {[%clk 0:02:46]}
7. Nf3 {[%clk 0:02:46]} 7... Bb7 {[%clk 0:02:45.7]} 8. Nbd2 {[%clk 0:02:46.4]}
8... Bd6 {[%clk 0:02:45.7]} 9. Qa4+ {[%clk 0:02:46.4]} 9... Qd7 {[%clk
0:02:43.2]} 10. Qa5 {[%clk 0:02:46.5]} 10... Ne7 {[%clk 0:02:39.7]} 11. b4
{[%clk 0:02:39]} 11... Bxf3 {[%clk 0:01:45.1]} 12. Nxf3 {[%clk 0:02:37.5]} 12...
Nc6 {[%clk 0:01:45.8]} 13. Qa4 {[%clk 0:02:31.7]} 13... Nxb4 {[%clk 0:01:46]}
14. Qxd7+ {[%clk 0:02:31.3]} 14... Kxd7 {[%clk 0:01:46.9]} 15. Kd1 {[%clk
0:02:31.6]} 15... Rhe8 {[%clk 0:01:44]} 16. Ng5 {[%clk 0:02:28.9]} 16... f6
{[%clk 0:01:37.9]} 17. Ne4 {[%clk 0:02:27.5]} 17... Be7 {[%clk 0:01:29.5]} 18.
a3 {[%clk 0:02:22.3]} 18... Nc6 {[%clk 0:01:27.6]} 19. Kc2 {[%clk 0:02:22.1]}
19... g6 {[%clk 0:01:27.6]} 20. Bd2 {[%clk 0:02:20.9]} 20... f5 {[%clk
0:01:27.8]} 21. Ng3 {[%clk 0:02:20.1]} 21... Rf8 {[%clk 0:01:27.2]} 22. gxf5
{[%clk 0:02:19.4]} 22... gxf5 {[%clk 0:01:27.1]} 23. Rab1 {[%clk 0:02:17]} 23...
Nd8 {[%clk 0:01:23.6]} 24. f4 {[%clk 0:02:11.1]} 24... exf4 {[%clk 0:01:21]} 25.
Bxf4 {[%clk 0:02:10.5]} 25... Ne6 {[%clk 0:01:21.7]} 26. Nh5 {[%clk 0:02:09.1]}
26... Rg8 {[%clk 0:01:12.4]} 27. Rb7 {[%clk 0:02:08.2]} 27... Rg2 {[%clk
0:01:11.1]} 28. Kd1 {[%clk 0:02:00.7]} 28... Kc6 {[%clk 0:01:09.7]} 29. Rb2
{[%clk 0:01:55.2]} 29... Rag8 {[%clk 0:01:10.1]} 30. Be5 {[%clk 0:01:48.4]}
30... Bg5 {[%clk 0:01:01]} 31. Ng3 {[%clk 0:01:34.8]} 31... Rf8 {[%clk
0:00:53.9]} 32. Rf1 {[%clk 0:01:32.6]} 32... f4 {[%clk 0:00:54.1]} 33. Ne4
{[%clk 0:01:31.2]} 33... f3 {[%clk 0:00:53.7]} 34. Ng3 {[%clk 0:00:41]} 34...
Bh4 {[%clk 0:00:39.7]} 35. Rd2 {[%clk 0:00:23.4]} 35... Bxg3 {[%clk 0:00:37.6]}
36. Bxg3 {[%clk 0:00:23.3]} 36... fxe2+ {[%clk 0:00:34.5]} 0-1

[Event "Early-Titled-Tuesday-Blitz-April-16-2024"]
[Site "Chess.com"]
[Date "2024.04.16"]
[Round "6"]
[White "Kildepiotr"]
[Black "GMAneta"]
[Result "1-0"]
[WhiteElo "2707"]
[BlackElo "2551"]
[TimeControl "180+1"]
[EndTime "9:07:34 PDT"]
[Termination "Kildepiotr won by resignation"]

1. e4 {[%clk 0:03:00]} 1... c5 {[%clk 0:02:59.3]} 2. Nf3 {[%clk 0:02:59.9]} 2...
Nc6 {[%clk 0:02:59]} 3. Bb5 {[%clk 0:02:59.6]} 3... Qc7 {[%clk 0:02:58.9]} 4. c3
{[%clk 0:02:55.7]} 4... a6 {[%clk 0:02:56.2]} 5. Ba4 {[%clk 0:02:55.8]} 5... Nf6
{[%clk 0:02:53.9]} 6. Qe2 {[%clk 0:02:55.2]} 6... b5 {[%clk 0:02:52.6]} 7. Bc2
{[%clk 0:02:55]} 7... Bb7 {[%clk 0:02:51.8]} 8. O-O {[%clk 0:02:54.7]} 8... Rc8
{[%clk 0:02:51.2]} 9. d3 {[%clk 0:02:50.6]} 9... e6 {[%clk 0:02:50.3]} 10. Bg5
{[%clk 0:02:50.1]} 10... Be7 {[%clk 0:02:49.9]} 11. Bh4 {[%clk 0:02:49.2]} 11...
O-O {[%clk 0:02:48.6]} 12. a4 {[%clk 0:02:47]} 12... d6 {[%clk 0:02:47.8]} 13.
Nbd2 {[%clk 0:02:45]} 13... Nh5 {[%clk 0:02:40.6]} 14. Bg3 {[%clk 0:02:26.8]}
14... Nxg3 {[%clk 0:02:39.5]} 15. hxg3 {[%clk 0:02:27.7]} 15... d5 {[%clk
0:02:35.9]} 16. exd5 {[%clk 0:02:19.9]} 16... exd5 {[%clk 0:02:35.5]} 17. axb5
{[%clk 0:02:17.9]} 17... axb5 {[%clk 0:02:35]} 18. Nh4 {[%clk 0:02:14.5]} 18...
Bf6 {[%clk 0:02:33.3]} 19. Nf5 {[%clk 0:02:09.7]} 19... Rfe8 {[%clk 0:02:31.2]}
20. Qg4 {[%clk 0:02:06.5]} 20... Ne5 {[%clk 0:02:26.6]} 21. Qh3 {[%clk
0:02:05.2]} 21... d4 {[%clk 0:02:13.7]} 22. Rfe1 {[%clk 0:01:41.3]} 22... dxc3
{[%clk 0:02:11]} 23. bxc3 {[%clk 0:01:41.3]} 23... Rcd8 {[%clk 0:02:09.2]} 24.
d4 {[%clk 0:01:29.2]} 24... Ng6 {[%clk 0:02:07]} 25. Rxe8+ {[%clk 0:01:18.6]}
25... Rxe8 {[%clk 0:02:06.5]} 26. Bd3 {[%clk 0:01:02.8]} 26... cxd4 {[%clk
0:02:02]} 27. cxd4 {[%clk 0:01:02.9]} 27... Qc3 {[%clk 0:01:59.5]} 28. Ra7
{[%clk 0:00:53]} 28... Bc8 {[%clk 0:01:45.3]} 29. Bxb5 {[%clk 0:00:35.9]} 29...
Qxd2 {[%clk 0:00:48.4]} 30. Bxe8 {[%clk 0:00:34.3]} 30... Qe1+ {[%clk
0:00:47.8]} 31. Kh2 {[%clk 0:00:33.8]} 31... Qxe8 {[%clk 0:00:45.8]} 32. Ra8
{[%clk 0:00:33.7]} 32... Qf8 {[%clk 0:00:27.2]} 33. Rxc8 {[%clk 0:00:31.7]}
33... Qxc8 {[%clk 0:00:26.5]} 34. Nh6+ {[%clk 0:00:31.8]} 34... gxh6 {[%clk
0:00:19.1]} 35. Qxc8+ {[%clk 0:00:32.7]} 1-0

[Event "Early-Titled-Tuesday-Blitz-April-16-2024"]
[Site "Chess.com"]
[Date "2024.04.16"]
[Round "6"]
[White "stolencandy13"]
[Black "mr_gustavo"]
[Result "1/2-1/2"]
[WhiteElo "2561"]
[BlackElo "2704"]
[TimeControl "180+1"]
[EndTime "9:07:35 PDT"]
[Termination "Game drawn by repetition"]

1. d4 {[%clk 0:03:00.9]} 1... Nf6 {[%clk 0:02:55.4]} 2. Bf4 {[%clk 0:03:01.1]}
2... b6 {[%clk 0:02:53.7]} 3. Nc3 {[%clk 0:02:56.2]} 3... Bb7 {[%clk 0:02:54.6]}
4. Nf3 {[%clk 0:02:52.9]} 4... g6 {[%clk 0:02:54.2]} 5. Qd2 {[%clk 0:02:52.4]}
5... Bg7 {[%clk 0:02:54.2]} 6. O-O-O {[%clk 0:02:52.2]} 6... O-O {[%clk
0:02:54.7]} 7. h4 {[%clk 0:02:52.4]} 7... h5 {[%clk 0:02:53.7]} 8. e3 {[%clk
0:02:45.8]} 8... d6 {[%clk 0:02:53.5]} 9. Ng5 {[%clk 0:02:41]} 9... Nbd7 {[%clk
0:02:53.8]} 10. f3 {[%clk 0:02:40.3]} 10... e5 {[%clk 0:02:52.7]} 11. Bg3 {[%clk
0:02:33.6]} 11... Qe7 {[%clk 0:02:52.6]} 12. Bc4 {[%clk 0:02:31]} 12... Rad8
{[%clk 0:02:52]} 13. Qd3 {[%clk 0:02:26.6]} 13... d5 {[%clk 0:02:48.9]} 14. Bb3
{[%clk 0:02:14.6]} 14... c5 {[%clk 0:02:49.2]} 15. dxc5 {[%clk 0:01:51.3]} 15...
Nxc5 {[%clk 0:02:32.3]} 16. Qe2 {[%clk 0:01:39.4]} 16... a5 {[%clk 0:02:21.5]}
17. Kb1 {[%clk 0:01:37.8]} 17... Bc6 {[%clk 0:02:17.2]} 18. e4 {[%clk
0:01:35.7]} 18... d4 {[%clk 0:02:13.2]} 19. Nd5 {[%clk 0:01:32]} 19... Nxd5
{[%clk 0:02:12.3]} 20. exd5 {[%clk 0:01:29.1]} 20... Bxd5 {[%clk 0:02:12.6]} 21.
Bxd5 {[%clk 0:01:18.2]} 21... Rxd5 {[%clk 0:02:12.6]} 22. Rhe1 {[%clk
0:01:19.1]} 22... a4 {[%clk 0:01:58]} 23. Qc4 {[%clk 0:01:19]} 23... Qd7 {[%clk
0:01:55]} 24. a3 {[%clk 0:01:10.3]} 24... Rc8 {[%clk 0:01:52.8]} 25. f4 {[%clk
0:00:59.8]} 25... Ne4 {[%clk 0:01:43.4]} 26. Qd3 {[%clk 0:00:57.1]} 26... Nxg5
{[%clk 0:01:43.5]} 27. hxg5 {[%clk 0:00:53.5]} 27... exf4 {[%clk 0:01:43.8]} 28.
Bxf4 {[%clk 0:00:54.4]} 28... Qf5 {[%clk 0:01:37.7]} 29. Re4 {[%clk 0:00:47.2]}
29... Rdc5 {[%clk 0:01:30.5]} 30. Rd2 {[%clk 0:00:45.8]} 30... b5 {[%clk
0:01:27]} 31. g3 {[%clk 0:00:45.4]} 31... Rc4 {[%clk 0:01:25.3]} 32. Rde2 {[%clk
0:00:45.1]} 32... Kh7 {[%clk 0:01:24.5]} 33. Re7 {[%clk 0:00:41]} 33... Qd5
{[%clk 0:01:24.4]} 34. Be5 {[%clk 0:00:36.2]} 34... b4 {[%clk 0:01:19.2]} 35.
Bxg7 {[%clk 0:00:32]} 35... Kxg7 {[%clk 0:01:18.4]} 36. R2e5 {[%clk 0:00:31.2]}
36... Qh1+ {[%clk 0:01:10.7]} 37. Re1 {[%clk 0:00:31.4]} 37... Qc6 {[%clk
0:01:01.9]} 38. Qf1 {[%clk 0:00:24.8]} 38... Rf8 {[%clk 0:00:52.8]} 39. R1e6
{[%clk 0:00:20.4]} 39... Qc8 {[%clk 0:00:44.7]} 40. Qf6+ {[%clk 0:00:19.7]}
40... Kg8 {[%clk 0:00:44.9]} 41. Qxg6+ {[%clk 0:00:15.1]} 41... fxg6 {[%clk
0:00:45]} 42. Rxg6+ {[%clk 0:00:15.9]} 42... Kh8 {[%clk 0:00:45.6]} 43. Rh6+
{[%clk 0:00:16.5]} 43... Kg8 {[%clk 0:00:46.3]} 44. Rg6+ {[%clk 0:00:17.2]}
44... Kh8 {[%clk 0:00:47.2]} 45. Rh6+ {[%clk 0:00:17.8]} 45... Kg8 {[%clk
0:00:47.9]} 46. Rg6+ {[%clk 0:00:18.7]} 1/2-1/2

[Event "Early-Titled-Tuesday-Blitz-April-16-2024"]
[Site "Chess.com"]
[Date "2024.04.16"]
[Round "6"]
[White "Tagir45"]
[Black "NiranjanNavalgund"]
[Result "1-0"]
[WhiteElo "2636"]
[BlackElo "2507"]
[TimeControl "180+1"]
[EndTime "9:07:36 PDT"]
[Termination "Tagir45 won by checkmate"]

1. d4 {[%clk 0:02:56.6]} 1... d6 {[%clk 0:02:58.6]} 2. Nf3 {[%clk 0:02:54]} 2...
Bg4 {[%clk 0:02:58.3]} 3. c4 {[%clk 0:02:50.4]} 3... Bxf3 {[%clk 0:02:58.1]} 4.
exf3 {[%clk 0:02:48.8]} 4... Nd7 {[%clk 0:02:59]} 5. Nc3 {[%clk 0:02:47.4]} 5...
e5 {[%clk 0:02:59.1]} 6. Be3 {[%clk 0:02:07.9]} 6... exd4 {[%clk 0:02:57.7]} 7.
Bxd4 {[%clk 0:02:07.3]} 7... Ngf6 {[%clk 0:02:58.2]} 8. Bd3 {[%clk 0:02:06.1]}
8... Be7 {[%clk 0:02:58.7]} 9. Qc2 {[%clk 0:02:04.4]} 9... O-O {[%clk
0:02:58.9]} 10. O-O-O {[%clk 0:01:56.2]} 10... a6 {[%clk 0:02:58.8]} 11. g4
{[%clk 0:01:55]} 11... b5 {[%clk 0:02:54.9]} 12. g5 {[%clk 0:01:52.1]} 12... Nh5
{[%clk 0:02:53.3]} 13. Bxh7+ {[%clk 0:01:48.3]} 13... Kh8 {[%clk 0:02:52.8]} 14.
h4 {[%clk 0:01:47.8]} 14... bxc4 {[%clk 0:02:50]} 15. Bg6 {[%clk 0:01:06.6]}
15... Nf4 {[%clk 0:02:46.4]} 16. Bf5 {[%clk 0:01:05.4]} 16... c5 {[%clk
0:02:42]} 17. Be3 {[%clk 0:01:04.4]} 17... Ne6 {[%clk 0:02:40.9]} 18. f4 {[%clk
0:00:55]} 18... Nb6 {[%clk 0:02:34.6]} 19. h5 {[%clk 0:00:54]} 19... d5 {[%clk
0:02:25.6]} 20. h6 {[%clk 0:00:53.8]} 20... d4 {[%clk 0:02:10.4]} 21. hxg7+
{[%clk 0:00:53.1]} 21... Kxg7 {[%clk 0:02:11.3]} 22. Rh7+ {[%clk 0:00:50.7]}
22... Kg8 {[%clk 0:02:11.3]} 23. Rdh1 {[%clk 0:00:51.6]} 23... Nxg5 {[%clk
0:02:06.8]} 24. fxg5 {[%clk 0:00:45.5]} 24... Bxg5 {[%clk 0:02:07]} 25. Rh8+
{[%clk 0:00:40.7]} 25... Kg7 {[%clk 0:02:07.4]} 26. R1h7+ {[%clk 0:00:40.5]}
26... Kf6 {[%clk 0:02:07.9]} 27. Bxg5+ {[%clk 0:00:40.1]} 27... Kxg5 {[%clk
0:02:07]} 28. Rh5+ {[%clk 0:00:23.3]} 28... Kf6 {[%clk 0:02:04.9]} 29. R8h6+
{[%clk 0:00:21.2]} 29... Kg7 {[%clk 0:01:58.4]} 30. Qe2 {[%clk 0:00:19.2]} 30...
Rg8 {[%clk 0:01:55.6]} 31. Rh7+ {[%clk 0:00:16.1]} 31... Kf8 {[%clk 0:01:55.9]}
32. Be6 {[%clk 0:00:06.3]} 32... Ra7 {[%clk 0:01:51]} 33. Qf3 {[%clk 0:00:04.8]}
33... Qe8 {[%clk 0:01:46.8]} 34. Bxf7 {[%clk 0:00:04.3]} 34... Rxf7 {[%clk
0:01:46.1]} 35. Rxf7+ {[%clk 0:00:04.5]} 35... Qxf7 {[%clk 0:01:46.3]} 36. Rf5
{[%clk 0:00:05.1]} 36... Rg7 {[%clk 0:01:46.4]} 37. Ne4 {[%clk 0:00:03.3]} 37...
c3 {[%clk 0:01:41.3]} 38. bxc3 {[%clk 0:00:03]} 38... d3 {[%clk 0:01:40.9]} 39.
Rxf7+ {[%clk 0:00:03.2]} 39... Rxf7 {[%clk 0:01:40.7]} 40. Qxd3 {[%clk
0:00:03.9]} 40... c4 {[%clk 0:01:41]} 41. Qd6+ {[%clk 0:00:04.2]} 41... Kg7
{[%clk 0:01:41.4]} 42. Qxb6 {[%clk 0:00:05.1]} 42... Re7 {[%clk 0:01:41.7]} 43.
Qd4+ {[%clk 0:00:05.5]} 43... Kg8 {[%clk 0:01:41.6]} 44. Qxc4+ {[%clk 0:00:06]}
44... Kh8 {[%clk 0:01:41.3]} 45. Qd4+ {[%clk 0:00:06.4]} 45... Kg8 {[%clk
0:01:41]} 46. f4 {[%clk 0:00:07.3]} 46... a5 {[%clk 0:01:40.7]} 47. f5 {[%clk
0:00:07.7]} 47... a4 {[%clk 0:01:40.3]} 48. f6 {[%clk 0:00:08.1]} 48... Rf7
{[%clk 0:01:39.8]} 49. Qd8+ {[%clk 0:00:07.9]} 49... Kh7 {[%clk 0:01:39.7]} 50.
Qe8 {[%clk 0:00:08.3]} 50... Rc7 {[%clk 0:01:37.2]} 51. Qe7+ {[%clk 0:00:06.3]}
51... Kh8 {[%clk 0:01:35.6]} 52. Qxc7 {[%clk 0:00:03.4]} 52... a3 {[%clk
0:01:36.5]} 53. Qg7# {[%clk 0:00:02.8]} 1-0